bitfinex-derivatives/quotes_BNBF0:USTF0_20250413
["timestamp","ask_amount","ask_price","bid_price","bid_amount"]
[1744539777026,0.31063582,592.45,591.77,2.739]
[1744539777326,0.31063582,592.44,591.77,2.739]
[1744539777627,0.31063582,592.43,591.77,2.739]
[1744539777827,0.29404309,592.44,591.77,2.739]
[1744539778026,0.31064474,592.43,591.77,2.739]
[1744539779528,0.31064474,592.42,591.77,2.739]
[1744539779729,0.31064474,592.41,591.77,2.739]
[1744539779930,0.31064474,592.4,591.77,2.739]
[1744539780129,0.31064474,592.45,591.77,2.739]
[1744539780328,1.62420617,592.46,591.77,2.739]
[1744539780329,0.31064474,592.44,591.77,2.739]
[1744539780529,0.31064474,592.43,591.77,2.739]
[1744539780729,0.31064474,592.42,591.77,2.739]
[1744539780930,0.31064474,592.41,591.77,2.739]
[1744539781132,0.31064474,592.4,591.77,2.739]
[1744539781332,0.31064474,592.43,591.77,2.739]
[1744539781532,0.31064474,592.42,591.77,2.739]
[1744539781734,0.31064474,592.41,591.77,2.739]
[1744539781934,0.31064474,592.4,591.77,2.739]
[1744539782129,0.31064474,592.43,591.77,2.739]
[1744539782329,0.31064474,592.42,591.77,2.739]
[1744539782534,0.31064474,592.41,591.77,2.739]
[1744539782730,0.31064474,592.4,591.77,2.739]
[1744539782935,0.31064474,592.39,591.77,2.739]
[1744539783234,0.31064474,592.38,591.77,2.739]
[1744539783435,1.62420617,592.46,591.77,2.739]
[1744539783634,1.28663064,592.36,591.77,2.739]
[1744539785138,0.29405552,592.35,591.77,2.739]
[1744539788039,0.31059477,592.34,591.77,2.739]
[1744539790134,0.29405552,592.35,591.77,2.739]
[1744539790338,0.31057753,592.34,591.77,2.739]
[1744539791639,0.31057753,592.45,591.77,2.739]
[1744539791841,0.31057744,592.44,591.77,2.739]
[1744539792039,0.31057744,592.43,591.77,2.739]
[1744539792241,0.31057744,592.45,591.77,2.739]
[1744539792442,0.31057744,592.42,591.77,2.739]
[1744539792644,0.31057744,592.41,591.77,2.739]
[1744539792842,0.2940108,592.44,591.77,2.739]
[1744539793043,0.31057744,592.43,591.77,2.739]
[1744539793744,0.2940108,592.44,591.77,2.739]
[1744539794444,0.33757553,592.46,591.77,2.739]
[1744539795546,0.29398596,592.45,591.77,2.739]
[1744539797346,0.33757553,592.46,591.77,2.739]
[1744539798548,0.2939003,592.45,591.77,2.739]
[1744539799250,0.31060156,592.44,591.77,2.739]
[1744539800648,0.31060156,592.45,591.77,2.739]
[1744539801546,0.29402322,592.44,591.77,2.739]
[1744539801753,0.31060524,592.43,591.77,2.739]
[1744539803545,0.31060524,592.44,591.77,2.739]
[1744539803746,0.31060524,592.43,591.77,2.739]
[1744539803947,0.31060524,592.42,591.77,2.739]
[1744539804145,0.31060524,592.44,591.77,2.739]
[1744539804452,0.29406173,592.41,591.77,2.739]
[1744539804648,0.31060524,592.4,591.77,2.739]
[1744539804853,0.31067331,592.39,591.77,2.739]
[1744539805053,0.31067331,592.38,591.77,2.739]
[1744539805254,0.31067331,592.4,591.77,2.739]
[1744539805452,0.31067331,592.39,591.77,2.739]
[1744539805754,0.31067331,592.38,591.77,3.38]
[1744539805955,0.31067331,592.4,591.77,3.38]
[1744539806155,0.31067331,592.39,591.77,3.38]
[1744539806349,0.31067331,592.4,591.77,3.38]
[1744539806548,0.31067331,592.39,591.77,3.38]
[1744539806755,0.33762112,592.38,591.77,3.38]
[1744539806951,0.31067331,592.37,591.77,3.38]
[1744539807255,0.33763252,592.36,591.77,3.38]
[1744539807456,0.31067331,592.35,591.77,3.38]
[1744539807956,0.33763252,592.36,591.77,3.38]
[1744539808152,0.31072839,592.35,591.77,3.38]
[1744539809358,0.64836661,592.35,591.77,3.38]
[1744539809553,0.33763822,592.35,591.77,3.38]
[1744539809756,0.31072961,592.34,591.77,3.38]
[1744539810258,0.31072961,592.33,591.77,3.38]
[1744539810459,0.31072961,592.32,591.77,3.38]
[1744539810758,0.31072961,592.31,591.77,3.38]
[1744539810959,0.64839633,592.3,591.77,3.38]
[1744539811159,0.64840203,592.29,591.77,3.38]
[1744539811458,0.64840773,592.28,591.77,3.38]
[1744539811753,0.31072961,592.27,591.77,3.38]
[1744539811958,0.31072961,592.26,591.77,3.38]
[1744539812159,0.31072961,592.25,591.77,3.38]
[1744539812358,0.31072961,592.24,591.77,3.38]
[1744539812559,0.31072961,592.23,591.77,3.38]
[1744539812856,0.31072961,592.27,591.77,3.38]
[1744539813061,0.31072961,592.26,591.77,3.38]
[1744539813261,0.31072961,592.25,591.77,3.38]
[1744539813461,0.31074934,592.24,591.77,3.38]
[1744539813659,0.31074934,592.23,591.77,3.38]
[1744539815657,0.31074934,592.27,591.77,3.38]
[1744539815859,0.31074934,592.26,591.77,3.38]
[1744539816064,0.31074934,592.25,591.77,3.38]
[1744539816364,0.31074934,592.24,591.77,3.38]
[1744539816565,0.29412262,592.24,591.77,3.38]
[1744539816761,0.31074934,592.23,591.77,3.38]
[1744539817666,0.29412262,592.24,591.77,3.38]
[1744539817962,0.31073614,592.23,591.77,3.38]
[1744539818562,0.31073614,592.22,591.77,3.38]
[1744539818765,0.31073614,592.27,591.77,3.38]
[1744539818969,0.31073614,592.26,591.77,3.38]
[1744539819162,0.31073614,592.27,591.77,3.38]
[1744539819361,0.31073614,592.26,591.77,3.38]
[1744539819560,0.29411765,592.26,591.77,3.38]
[1744539819761,0.31073614,592.25,591.77,3.38]
[1744539820866,0.29411765,592.26,591.77,3.38]
[1744539821071,0.31071792,592.25,591.77,3.38]
[1744539822366,0.29411765,592.26,591.77,3.38]
[1744539822572,0.31071831,592.25,591.77,3.38]
[1744539825573,0.29411765,592.26,591.77,3.38]
[1744539825869,0.31071297,592.25,591.77,3.38]
[1744539827676,0.29410273,592.24,591.77,3.38]
[1744539828076,0.31071297,592.23,591.77,3.38]
[1744539830678,0.31071297,592.27,591.77,3.38]
[1744539830879,0.31071297,592.26,591.77,3.38]
[1744539831079,0.31071297,592.27,591.77,3.38]
[1744539831278,0.31071297,592.26,591.77,3.38]
[1744539831577,0.31071297,592.27,591.77,3.38]
[1744539831774,0.29410025,592.25,591.77,3.38]
[1744539832274,0.31071264,592.24,591.77,3.38]
[1744539833580,0.31071264,592.27,591.77,3.38]
[1744539833879,0.31071264,592.26,591.77,3.38]
[1744539834077,0.31071264,592.27,591.77,3.38]
[1744539834279,0.31071264,592.26,591.77,3.38]
[1744539834581,0.60481289,592.25,591.77,3.38]
[1744539834777,0.31071264,592.24,591.77,3.38]
[1744539835182,0.29410025,592.25,591.77,3.38]
[1744539835478,0.31071189,592.24,591.77,3.38]
[1744539836784,0.29410025,592.25,591.77,3.38]
[1744539836983,0.31070297,592.24,591.77,3.38]
[1744539839583,0.31070297,592.27,591.77,3.38]
[1744539839778,0.31070297,592.26,591.77,3.38]
[1744539839980,0.31070297,592.27,591.77,3.38]
[1744539840178,0.31070297,592.26,591.77,3.38]
[1744539840382,0.31070297,592.25,591.77,3.38]
[1744539840581,0.29409031,592.25,591.77,3.38]
[1744539840780,0.31070297,592.24,591.77,3.38]
[1744539841181,0.31067962,592.23,591.77,3.38]
[1744539841388,0.31067962,592.24,591.77,3.38]
[1744539841588,0.31067962,592.23,591.77,3.38]
[1744539841886,0.31067962,592.22,591.77,3.38]
[1744539842288,0.31067962,592.21,591.77,3.38]
[1744539842490,0.31067962,592.24,591.77,3.38]
[1744539842788,0.31067963,592.23,591.77,3.38]
[1744539842986,0.31067963,592.22,591.77,3.38]
[1744539843190,0.31067963,592.27,591.77,3.38]
[1744539843390,0.31067963,592.26,591.77,3.38]
[1744539843592,0.31067963,592.25,591.77,3.38]
[1744539845590,0.31067963,592.27,591.77,3.38]
[1744539845792,0.33767812,592.28,591.77,3.38]
[1744539846091,0.31069682,592.27,591.77,3.38]
[1744539846591,0.29409031,592.26,591.77,3.38]
[1744539846888,0.31069682,592.25,591.77,3.38]
[1744539847392,0.29409031,592.26,591.77,3.38]
[1744539847589,0.31069549,592.25,591.77,3.38]
[1744539848789,0.31069549,592.27,591.77,3.38]
[1744539848993,0.33767812,592.28,591.77,3.38]
[1744539849194,0.31069548,592.27,591.77,3.38]
[1744539849894,0.29409031,592.26,591.77,3.38]
[1744539850094,0.31069548,592.25,591.77,3.38]
[1744539850594,0.29409031,592.26,591.77,3.38]
[1744539850893,0.31069561,592.25,591.77,3.38]
[1744539851495,0.31069561,592.27,591.77,3.38]
[1744539851795,0.29409279,592.24,591.77,3.38]
[1744539851990,0.31069561,592.23,591.77,3.38]
[1744539854497,0.31069561,592.27,591.77,3.38]
[1744539854697,0.33767812,592.28,591.77,3.38]
[1744539854698,0.29409528,592.22,591.77,3.38]
[1744539854898,0.31069561,592.21,591.77,3.38]
[1744539855399,0.29409528,592.22,591.77,3.38]
[1744539855794,0.31069575,592.21,591.77,3.38]
[1744539857003,0.29409528,592.22,591.77,3.38]
[1744539857303,0.31069572,592.21,591.77,3.38]
[1744539857500,0.31069572,592.27,591.77,3.38]
[1744539857702,0.29409031,592.2,591.77,3.38]
[1744539857901,0.31069572,592.19,591.77,3.38]
[1744539858303,0.31069572,592.26,591.77,0.561]
[1744539858502,0.31069572,592.25,591.77,0.561]
[1744539858703,0.31069203,592.24,591.77,0.561]
[1744539858903,0.31069203,592.23,591.77,0.561]
[1744539859202,0.60487805,592.22,591.77,0.561]
[1744539859403,0.31069203,592.21,591.77,0.561]
[1744539859803,1.28663064,592.14,591.77,0.561]
[1744539859999,0.31069203,592.13,591.01,0.29409031]
[1744539860197,0.31069203,592.13,591.02,0.64695964]
[1744539860397,0.31069203,592.13,591.03,0.64695391]
[1744539860602,0.31069203,592.13,591.04,0.64694819]
[1744539860800,0.31069203,592.13,591.05,0.64694246]
[1744539861002,0.31069203,592.13,591.06,0.64693674]
[1744539861202,0.31069203,592.13,591.07,0.64693101]
[1744539861401,0.31069203,592.13,591.08,0.64692529]
[1744539861599,0.31069203,592.13,591.09,0.30856162]
[1744539861800,1.58082537,592.14,591.1,0.33835222]
[1744539862004,0.31069542,592.13,591.11,0.30855915]
[1744539862199,0.31069542,592.13,591.12,0.33834077]
[1744539863105,0.31069542,592.13,591.13,0.515]
[1744539863400,0.31069542,592.13,591.14,0.33832932]
[1744539864305,0.31069542,592.13,591.15,0.67]
[1744539864505,0.31069542,592.13,591.16,0.33831788]
[1744539865102,0.3106906,592.12,591.16,0.33831788]
[1744539865305,0.3106906,592.11,591.16,0.33831788]
[1744539865504,0.3106906,592.1,591.16,0.33831788]
[1744539865702,0.3106906,592.09,591.16,0.33831788]
[1744539865902,0.3106906,592.13,591.16,0.33831788]
[1744539866106,0.29419473,592.14,591.16,0.33831788]
[1744539866304,0.31069799,592.13,591.16,0.33831788]
[1744539866809,0.31069796,592.12,591.16,0.33831788]
[1744539867003,0.31069796,592.26,591.16,0.33831788]
[1744539867810,0.294191,592.25,591.16,0.33831788]
[1744539868010,0.31069796,592.24,591.16,0.33831788]
[1744539869706,0.31069796,592.27,591.16,0.33831788]
[1744539870009,0.31069796,592.26,591.16,0.33831788]
[1744539870209,0.31069796,592.27,591.16,0.33831788]
[1744539870612,0.29418975,592.26,591.16,0.33831788]
[1744539870912,0.31069796,592.25,591.16,0.33831788]
[1744539871415,0.29418975,592.26,591.16,0.33831788]
[1744539871616,0.31070643,592.25,591.16,0.33831788]
[1744539872615,0.31070643,592.27,591.16,0.33831788]
[1744539872818,0.31070643,592.26,591.16,0.33831788]
[1744539873016,0.33767812,592.28,591.16,0.33831788]
[1744539873316,0.31069574,592.27,591.16,0.33831788]
[1744539873620,0.60487057,592.27,591.16,0.33831788]
[1744539873917,0.31069574,592.26,591.16,0.33831788]
[1744539874521,1.58080547,592.27,591.16,0.33831788]
[1744539874822,0.31069912,592.26,591.16,0.33831788]
[1744539876217,1.28663064,592.27,591.16,0.33831788]
[1744539876517,0.31067959,592.26,591.16,0.33831788]
[1744539876717,0.29416613,592.25,591.16,0.33831788]
[1744539876918,0.31067959,592.24,591.16,0.33831788]
[1744539878220,0.31067959,592.24,591.17,0.30850133]
[1744539878521,0.31067959,592.24,591.18,0.33830643]
[1744539878719,0.31067959,592.27,591.19,0.30850133]
[1744539879014,0.31067959,592.27,591.2,0.33829499]
[1744539879219,0.31067959,592.27,591.21,0.30850133]
[1744539879718,0.29415245,592.26,591.21,0.30850133]
[1744539879919,0.31067959,592.25,591.22,0.33828354]
[1744539880214,0.31067959,592.25,591.23,0.30850133]
[1744539880415,0.31067959,592.25,591.24,0.3382721]
[1744539880619,0.31067959,592.25,591.25,0.30850133]
[1744539880820,0.31067959,592.25,591.26,0.33826066]
[1744539881021,0.31061086,592.24,591.26,0.33826066]
[1744539881216,0.31061086,592.23,591.27,0.30847415]
[1744539881422,0.31061086,592.25,591.27,0.64672909]
[1744539881622,0.31061086,592.24,591.27,0.33825494]
[1744539881823,0.31061086,592.25,591.27,0.33825494]
[1744539882023,0.31061086,592.24,591.27,0.33825494]
[1744539882324,0.31061086,592.25,591.27,0.33825494]
[1744539882524,0.29415245,592.26,591.27,0.33825494]
[1744539882725,0.31061393,592.25,591.27,0.33825494]
[1744539884629,0.31061393,592.27,591.27,0.33825494]
[1744539885128,0.31061393,592.27,591.27,1.26525494]
[1744539885326,0.31061393,592.27,591.28,0.30848252]
[1744539885622,0.2941251,592.26,591.28,0.30848252]
[1744539885827,0.31061393,592.25,591.28,0.30848252]
[1744539887927,0.31061393,592.27,591.28,0.30848252]
[1744539888126,0.33767812,592.28,591.28,0.30848252]
[1744539888127,0.31061393,592.26,591.28,0.30848252]
[1744539888325,0.31061393,592.25,591.28,0.30848252]
[1744539888525,0.31061393,592.27,591.28,0.30848252]
[1744539888726,0.2941251,592.25,591.28,0.30848252]
[1744539888924,0.31061393,592.24,591.28,0.30848252]
[1744539889623,0.31061393,592.24,591.27,1.26525494]
[1744539890128,0.31061393,592.24,591.28,0.30848603]
[1744539890429,0.33767812,592.28,591.27,1.26525494]
[1744539890629,0.31062275,592.27,591.28,0.30848655]
[1744539891630,0.2941251,592.26,591.28,0.30848655]
[1744539891830,0.31062275,592.25,591.28,0.30848655]
[1744539892027,0.2941251,592.26,591.27,1.26525494]
[1744539892332,0.31062283,592.25,591.28,0.30848663]
[1744539892630,0.31062283,592.25,591.27,1.26525494]
[1744539893333,0.31062283,592.25,591.27,2.05225494]
[1744539893528,0.31062283,592.25,591.27,2.57025494]
[1744539893727,0.31062439,592.24,591.27,2.57025494]
[1744539895334,0.31062439,592.24,591.27,3.35025494]
[1744539896529,0.31062439,592.23,591.27,3.35025494]
[1744539896734,0.29412883,592.25,591.27,3.35025494]
[1744539896934,0.31062439,592.24,591.27,3.85625494]
[1744539899829,0.31062439,592.23,591.27,3.85625494]
[1744539900129,0.31062439,592.22,591.27,3.85625494]
[1744539900334,0.31062439,592.21,591.27,3.85625494]
[1744539900533,0.31062439,592.27,591.27,3.85625494]
[1744539900735,0.2941251,592.25,591.27,3.85625494]
[1744539901034,0.31062439,592.24,591.27,3.85625494]
[1744539902537,0.31062439,592.27,591.27,3.85625494]
[1744539903642,0.29416737,592.26,591.27,3.85625494]
[1744539903843,0.31062439,592.25,591.27,3.85625494]
[1744539905542,0.31062439,592.27,591.27,3.85625494]
[1744539905743,0.29416986,592.24,591.27,3.85625494]
[1744539905945,0.31062439,592.23,591.27,3.85625494]
[1744539907651,0.29416986,592.24,591.27,3.85625494]
[1744539907851,0.31072203,592.23,591.27,3.85625494]
[1744539908550,0.31072203,592.27,591.27,3.85625494]
[1744539909252,0.33767812,592.28,591.27,3.85625494]
[1744539909453,0.31072027,592.27,591.27,3.85625494]
[1744539909654,0.60487521,592.27,591.27,3.85625494]
[1744539909853,0.31072027,592.26,591.27,3.85625494]
[1744539910853,0.29415494,592.27,591.27,3.85625494]
[1744539911152,0.3107133,592.26,591.27,3.85625494]
[1744539912454,0.29415494,592.27,591.27,3.85625494]
[1744539912651,0.31071457,592.26,591.27,3.85625494]
[1744539914153,0.31071526,592.25,591.27,3.85625494]
[1744539914352,0.31071526,592.24,591.27,3.85625494]
[1744539914555,0.31071526,592.27,591.27,3.85625494]
[1744539914853,0.31071526,592.26,591.27,3.85625494]
[1744539915154,0.31071526,592.25,591.27,3.85625494]
[1744539915350,0.31071526,592.27,591.27,3.85625494]
[1744539915550,0.31071526,592.26,591.27,3.85625494]
[1744539915855,0.29417732,592.24,591.27,3.85625494]
[1744539916049,0.31071526,592.23,591.27,3.85625494]
[1744539917754,0.31071526,592.22,591.27,3.85625494]
[1744539917955,0.31071526,592.21,591.27,3.85625494]
[1744539918152,0.31071526,592.27,591.27,3.85625494]
[1744539918353,0.31071526,592.26,591.27,3.85625494]
[1744539918552,0.31071526,592.27,591.27,3.85625494]
[1744539918752,0.29417732,592.26,591.27,3.85625494]
[1744539918952,0.31070799,592.25,591.27,3.85625494]
[1744539919352,0.64840322,592.25,591.27,3.85625494]
[1744539919557,0.31070799,592.24,591.27,3.85625494]
[1744539920458,0.33770663,592.23,591.27,3.518]
[1744539920659,0.31075214,592.22,591.27,3.518]
[1744539920956,0.64846447,592.22,591.27,3.518]
[1744539921159,0.33771233,592.22,591.27,3.518]
[1744539921360,0.31075008,592.21,591.27,3.518]
[1744539922855,0.31075008,592.2,591.27,3.518]
[1744539923059,0.31075008,592.19,591.27,3.518]
[1744539923259,0.31075008,592.21,591.27,3.518]
[1744539923459,0.31075008,592.2,591.27,3.518]
[1744539923659,0.31075008,592.19,591.27,3.518]
[1744539923862,0.31075008,592.21,591.27,3.518]
[1744539924061,0.31075008,592.2,591.27,3.518]
[1744539924357,0.31075008,592.19,591.27,3.518]
[1744539924561,0.31075008,592.21,591.27,3.518]
[1744539924762,0.31075008,592.2,591.27,3.518]
[1744539924959,0.31075008,592.19,591.27,3.518]
[1744539925165,0.31075008,592.21,591.27,3.518]
[1744539925364,0.31075008,592.2,591.27,3.518]
[1744539925563,0.31075008,592.19,591.27,3.518]
[1744539925761,0.31075008,592.21,591.27,3.518]
[1744539925962,0.31075008,592.2,591.27,3.518]
[1744539926162,0.31075008,592.19,591.27,3.518]
[1744539926462,0.31075008,592.18,591.27,3.518]
[1744539926660,0.31075008,592.21,591.27,3.518]
[1744539926859,0.31075008,592.2,591.27,3.518]
[1744539927064,0.31075008,592.19,591.27,3.518]
[1744539927268,0.31075008,592.21,591.27,3.518]
[1744539927468,0.31075008,592.2,591.27,3.518]
[1744539927664,0.31075008,592.19,591.27,3.518]
[1744539927865,0.31075008,592.21,591.27,3.518]
[1744539928070,0.31075008,592.2,591.27,3.518]
[1744539928270,0.31075008,592.21,591.27,3.518]
[1744539928573,0.31075008,592.2,591.27,3.518]
[1744539928771,0.31075008,592.21,591.27,3.518]
[1744539929073,0.29419846,592.19,591.27,3.518]
[1744539929373,0.31075008,592.18,591.27,3.518]
[1744539929568,0.31075008,592.21,591.27,3.518]
[1744539929770,0.31075008,592.2,591.27,3.518]
[1744539929967,0.31075008,592.21,591.27,3.518]
[1744539930567,0.29418478,592.2,591.27,3.518]
[1744539930772,0.31075008,592.19,591.27,3.518]
[1744539932567,0.31075008,592.21,591.27,3.518]
[1744539932769,0.31075008,592.2,591.27,3.518]
[1744539933069,0.31075008,592.19,591.27,3.518]
[1744539933274,0.31075008,592.21,591.27,3.518]
[1744539933474,0.31075008,592.2,591.27,3.518]
[1744539933675,0.29418478,592.2,591.27,3.518]
[1744539933872,0.31075008,592.19,591.27,3.518]
[1744539935576,0.31075008,592.21,591.27,3.518]
[1744539936375,0.31075008,592.21,591.27,4.074]
[1744539936576,0.29418478,592.2,591.27,4.074]
[1744539936777,0.31075008,592.19,591.27,4.074]
[1744539938677,0.31075008,592.18,591.27,4.074]
[1744539938980,0.31075008,592.17,591.27,4.074]
[1744539939178,0.31075008,592.16,591.27,4.074]
[1744539939479,0.31075008,592.15,591.27,4.074]
[1744539939779,0.29418478,592.15,591.27,4.074]
[1744539939979,0.31073668,592.14,591.27,4.074]
[1744539941581,0.31073668,592.19,591.27,4.074]
[1744539942682,0.29418727,592.18,591.27,4.074]
[1744539942882,0.31073668,592.17,591.27,4.074]
[1744539944685,0.29418975,592.16,591.27,4.074]
[1744539944984,0.31073668,592.15,591.27,4.074]
[1744539949482,1.58082039,592.16,591.27,4.074]
[1744539949685,0.31074155,592.15,591.27,4.074]
[1744539951181,1.28663064,592.16,591.27,4.074]
[1744539951385,0.31074276,592.15,591.27,4.074]
[1744539951686,0.604935,592.15,591.27,4.074]
[1744539951885,0.31074276,592.14,591.27,4.074]
[1744539952791,0.29419224,592.15,591.27,4.074]
[1744539953389,1.28663064,592.19,591.27,4.074]
[1744539953585,0.31071088,592.18,591.27,4.074]
[1744539954389,1.28663064,592.19,591.27,4.074]
[1744539954589,0.31072382,592.18,591.27,4.074]
[1744539954797,0.294191,592.17,591.27,4.074]
[1744539955101,0.31072382,592.16,591.27,4.074]
[1744539956291,0.294191,592.17,591.27,4.074]
[1744539957295,0.31071104,592.16,591.27,4.074]
[1744539959595,0.31071104,592.21,591.27,4.074]
[1744539959795,0.29419348,592.15,591.27,4.074]
[1744539959996,0.31071104,592.14,591.27,4.074]
[1744539965699,0.31071104,592.21,591.27,4.074]
[1744539965898,0.31071104,592.2,591.27,4.074]
[1744539966601,0.29418851,592.19,591.27,4.074]
[1744539966805,0.31071104,592.18,591.27,4.074]
[1744539969910,0.29418851,592.19,591.27,4.074]
[1744539970108,0.31073241,592.18,591.27,4.074]
[1744539971609,0.29421338,592.17,591.27,4.074]
[1744539971809,0.31073241,592.16,591.27,4.074]
[1744539974705,0.33771803,592.21,591.27,4.074]
[1744539974911,0.31074495,592.2,591.27,4.074]
[1744539975709,0.29419597,592.19,591.27,4.074]
[1744539975911,0.31074495,592.18,591.27,4.074]
[1744539977611,0.31074495,592.2,591.27,4.074]
[1744539978613,0.29420094,592.19,591.27,4.074]
[1744539978816,0.31074495,592.18,591.27,4.074]
[1744539979608,0.29420094,592.19,591.27,4.074]
[1744539979808,0.31074791,592.18,591.27,4.074]
[1744539980809,0.31074791,592.2,591.27,4.074]
[1744539981213,0.33771803,592.21,591.27,4.074]
[1744539981511,0.31073711,592.2,591.27,4.074]
[1744539981708,0.60492313,592.2,591.27,4.074]
[1744539981908,0.31073711,592.19,591.27,4.074]
[1744539983607,0.31073711,592.2,591.27,4.074]
[1744539983810,0.31073711,592.19,591.27,4.074]
[1744539984010,0.31073711,592.2,591.27,4.074]
[1744539984211,0.31073711,592.19,591.27,4.074]
[1744539984415,0.33771803,592.21,591.27,4.074]
[1744539984709,0.29420094,592.18,591.27,4.074]
[1744539984912,0.31074785,592.17,591.27,4.074]
[1744539986612,0.31074785,592.2,591.27,4.074]
[1744539986909,0.29420468,592.16,591.27,4.074]
[1744539987116,0.31074785,592.15,591.27,4.074]
[1744539989617,0.31074785,592.16,591.27,4.074]
[1744539990719,0.29420592,592.15,591.27,4.074]
[1744539991120,0.31075358,592.14,591.27,4.074]
[1744539992622,0.31075314,592.13,591.27,4.074]
[1744539992818,0.31075314,592.16,591.27,4.074]
[1744539993023,0.31075314,592.15,591.27,4.074]
[1744539993217,0.31075314,592.16,591.27,4.074]
[1744539993723,0.29420592,592.15,591.27,4.074]
[1744539993919,0.31075314,592.14,591.27,4.074]
[1744539995928,0.31075313,592.13,591.27,4.074]
[1744539996225,0.31075313,592.12,591.27,4.074]
[1744539996424,0.31075313,592.2,591.27,4.074]
[1744539996829,0.29420094,592.19,591.27,4.074]
[1744539997022,0.31075313,592.18,591.27,4.074]
[1744539998623,0.31075313,592.17,591.27,4.074]
[1744539998827,0.31075313,592.16,591.27,4.074]
[1744539999127,0.31075226,592.15,591.27,4.074]
[1744539999327,0.31075226,592.2,591.27,4.074]
[1744539999733,0.29419597,592.14,591.27,4.074]
[1744539999924,0.31075226,592.13,591.27,4.074]
[1744540001632,0.31075226,592.12,591.27,4.074]
[1744540001934,0.31075226,592.11,591.27,4.074]
[1744540002132,0.31075226,592.2,591.27,4.074]
[1744540002630,0.29420841,592.19,591.27,4.074]
[1744540002834,0.31075226,592.18,591.27,4.074]
[1744540003436,0.29420841,592.19,591.27,4.074]
[1744540003739,0.31076663,592.18,591.27,4.074]
[1744540004635,0.31076663,592.2,591.27,4.074]
[1744540005435,0.33771803,592.21,591.27,4.074]
[1744540005635,0.31076994,592.2,591.27,4.074]
[1744540005835,0.29420841,592.19,591.27,4.074]
[1744540006143,0.31076994,592.18,591.27,4.074]
[1744540006436,0.31076994,592.17,591.27,4.074]
[1744540006636,0.31076994,592.16,591.27,4.074]
[1744540006832,0.31076994,592.18,591.27,4.074]
[1744540007032,0.29420841,592.19,591.27,4.074]
[1744540007249,0.31076778,592.18,591.27,4.074]
[1744540007437,0.64850292,592.18,591.27,4.074]
[1744540007738,0.64850863,592.17,591.27,4.074]
[1744540007930,0.64851433,592.16,591.27,4.074]
[1744540008133,0.64852003,592.15,591.27,4.074]
[1744540008332,0.64852574,592.14,591.27,4.074]
[1744540008532,0.31076778,592.13,591.27,4.074]
[1744540009639,1.28663064,592.09,591.27,4.074]
[1744540009836,0.31076778,592.08,591.27,4.074]
[1744540010239,1.28663064,592.09,591.27,4.074]
[1744540010438,0.31081211,592.08,591.27,4.074]
[1744540011641,0.29424572,592.07,591.27,4.074]
[1744540011837,0.31081211,592.06,591.27,4.074]
[1744540013438,0.33775796,592.14,591.27,4.074]
[1744540013636,0.31083092,592.13,591.27,4.074]
[1744540013837,0.64859458,592.13,591.27,4.074]
[1744540014138,0.31083092,592.12,591.27,4.074]
[1744540014742,0.29424074,592.11,591.27,4.074]
[1744540014942,0.31083092,592.1,591.27,4.074]
[1744540015141,0.29424074,592.11,591.27,4.074]
[1744540015343,0.3108324,592.1,591.27,4.074]
[1744540016644,0.3108324,592.12,591.27,4.074]
[1744540016846,0.3108324,592.11,591.27,4.074]
[1744540017044,0.3108324,592.12,591.27,4.074]
[1744540017249,0.3108324,592.11,591.27,4.074]
[1744540017444,0.3108324,592.12,591.27,4.074]
[1744540017639,0.29424074,592.1,591.27,4.074]
[1744540017846,0.3108324,592.09,591.27,4.074]
[1744540018345,0.29424074,592.1,591.27,4.074]
[1744540018645,0.31083174,592.09,591.27,4.074]
[1744540019646,0.31083174,592.12,591.27,4.074]
[1744540019945,0.31083174,592.11,591.27,4.074]
[1744540020144,0.31083174,592.1,591.27,4.074]
[1744540020344,0.31083174,592.09,591.27,4.074]
[1744540020640,0.31083174,592.08,591.27,4.074]